Cogmind - Beta 9.4 @@@ ROGUE MODE // 2020.02.12 @ 15:49:56 Player: Ctrl_Alt_X Result: Destroyed by G-73 Enforcer with Heavy Laser Performance ------------- Evolutions (7) 3500 Regions Visited (26) 5200 Robots Destroyed (322) 1610 Value Destroyed (16410) 16410 Prototype IDs (42) 840 Alien Tech Used (2) 400 Bonus (11953) 11953 TOTAL SCORE: 39913 Bonus ------- Triggered High Security 500 High Alert Combat Kills 5230 Follower Combat Kills 3913 Entered Garrisons 200 Network Hubs Disabled 400 Met Data Miner 300 Met Imprinter 300 Was Imprinted 300 Met Zhirov 300 Built Enhanced Grunts 300 A7 Reached Mainframe 300 Met R17 at Cetus 500 Scanned by Researcher 500 Friendly Fire -1090 Cogmind --------- Core Integrity 0/1300 Matter 262/300 Energy 98/100 System Corruption 59% Temperature Cool (37) Movement Core (100) Ox1 Location -3/Garrison Parts ------- > --- POWER (2) -------- (None) > --- PROPULSION (4) --- (None) > --- UTILITY (13) ----- (None) > --- WEAPON (2) ------- Compact Mass Driver > --- INVENTORY (4) ---- Armored Heavy Treads Peak State ------------ > --- POWER ------------ Particle Reactor Light Particle Reactor > --- PROPULSION ------- Centrium Heavy Treads Centrium Heavy Treads > --- UTILITY ---------- Advanced Cooling System Large Storage Unit Large Storage Unit Large Storage Unit High-capacity Storage Unit Enhanced Optical Array Advanced Signal Interpreter Advanced Targeting Computer Advanced Target Analyzer Layered Light Armor Plating Centrium Medium Armor Plating Experimental Thermal Defense Suite Improved Remote Shield > --- WEAPON ----------- Cooled Plasma Cannon Cooled Plasma Cannon > --- INVENTORY -------- Light Antimatter Reactor Heavy Antimatter Reactor Particle Reactor Light Particle Reactor Armored Medium Treads Experimental Coolant Injector Makeshift Sensor Array Improved Focal Shield Makeshift System Restoration Module Transdimensional Reconstructor Heavy Plasma Cannon Heavy Plasma Cannon Cooled Plasma Cannon Matter Neutralizer Enhanced Coil Gun Enhanced Coil Gun Enhanced Coil Gun Improved KE Penetrator Improved KE Penetrator Improved KE Penetrator Hypervelocity Railgun Hypervelocity Railgun Hypervelocity Railgun Enhanced Gauss Cannon Linear Accelerator Compact Mass Driver Compact Mass Driver Micro-nuke Launcher Fusion Bomb Launcher [Rating: 141] Favorites ----------- Power Reinforced Deuterium Engine Engine Reinforced Deuterium Engine Power Core Neutrino Core Reactor Particle Reactor Propulsion Armored Medium Treads Treads Armored Medium Treads Leg Aluminum Leg Wheel Compact Wheel Utility High-capacity Storage Unit Device Advanced Cooling System Storage High-capacity Storage Unit Processor Advanced Signal Interpreter Protection Hardened Heavy Armor Plating Weapon Improved EM Pulse Cannon Energy Gun Cooled Pulse Rifle Energy Cannon Improved EM Pulse Cannon Ballistic Gun Improved Assault Rifle Ballistic Cannon Heavy Flak Cannon Launcher Mini Grenade Launcher Build | -11 -10 -9 -9 -9 -7 -7 -7 -7 -6 -6 -6 -6 -6 -5 -5 -5 -5 -5 -4 -4 -4 -4 -4 -4 -3 -3 ------- Run | Scr Mat Mat Sto Rec Fac Low Low Zio Pro Fac Low Low Dat Pro Fac Upp Upp Zhi Pro Fac Ext Cet Arc Hub Res Gar Slots Evolved 14 | . . 2 . . 4 . . . . 2 . . . . 2 . . . . 2 . . . . 2 . Power 1 | . . . . . . . . . . . . . . . 1 . . . . . . . . . . . Propulsion 2 | . . . . . 1 . . . . 1 . . . . . . . . . . . . . . . . Utility 11 | . . 2 . . 3 . . . . 1 . . . . 1 . . . . 2 . . . . 2 . Weapon . | . . . . . . . . . . . . . . . . . . . . . . . . . . . Parts Attached 410 | 5 4 10 18 . 25 6 19 6 15 35 3 7 . 17 33 14 10 8 22 14 21 11 . . 69 38 Power 31 | 1 . 1 4 . . . 3 . 4 2 . . . 1 1 . . 1 . 1 1 1 . . 8 2 Engine 15 | 1 . 1 4 . . . 2 . 3 2 . . . 1 1 . . . . . . . . . . . Core 4 | . . . . . . . 1 . 1 . . . . . . . . 1 . . 1 . . . . . Reactor 12 | . . . . . . . . . . . . . . . . . . . . 1 . 1 . . 8 2 Propulsion 58 | 2 . 4 2 . 3 . 6 2 6 6 . . . 3 9 . . 1 2 . 4 . . . 3 5 Treads 44 | . . . 2 . 3 . 2 . 6 5 . . . 2 9 . . 1 2 . 4 . . . 3 5 Leg 8 | . . 1 . . . . 4 1 . 1 . . . 1 . . . . . . . . . . . . Wheel 6 | 2 . 3 . . . . . 1 . . . . . . . . . . . . . . . . . . Hover . | . . . . . . . . . . . . . . . . . . . . . . . . . . . Flight . | . . . . . . . . . . . . . . . . . . . . . . . . . . . Utility 166 | 1 2 3 3 . 10 1 5 1 2 4 2 . . 7 11 12 5 6 9 11 10 7 . . 41 13 Device 90 | . . 1 . . 1 . 1 . 1 . . . . 7 9 6 4 3 4 7 5 4 . . 30 7 Storage 14 | 1 1 . 1 . 3 . . . . . 1 . . . . 3 . 1 1 1 1 . . . . . Processor 7 | . . 1 . . 3 . 1 . . 1 . . . . . . . . . . . . . . 1 . Hackware . | . . . . . . . . . . . . . . . . . . . . . . . . . . . Protection 55 | . 1 1 2 . 3 1 3 1 1 3 1 . . . 2 3 1 2 4 3 4 3 . . 10 6 Artifact . | . . . . . . . . . . . . . . . . . . . . . . . . . . . Weapon 155 | 1 2 2 9 . 12 5 5 3 3 23 1 7 . 6 12 2 5 . 11 2 6 3 . . 17 18 Energy Gun 15 | 1 . 1 3 . 8 2 . . . . . . . . . . . . . . . . . . . . Energy Cannon 81 | . . . . . 4 1 3 3 2 17 . 4 . 3 10 1 2 . 5 2 5 2 . . 10 7 Ballistic Gun 16 | . 1 1 3 . . . . . . 1 . . . . . . 1 . . . . . . . 4 5 Ballistic Cannon 10 | . . . . . . . . . . 1 . . . . . . 1 . 3 . 1 1 . . 1 2 Launcher 33 | . 1 . 3 . . 2 2 . 1 4 1 3 . 3 2 1 1 . 3 . . . . . 2 4 Special Weapon . | . . . . . . . . . . . . . . . . . . . . . . . . . . . Impact Weapon . | . . . . . . . . . . . . . . . . . . . . . . . . . . . Slashing Weapon . | . . . . . . . . . . . . . . . . . . . . . . . . . . . Piercing Weapon . | . . . . . . . . . . . . . . . . . . . . . . . . . . . Special Melee Weapon . | . . . . . . . . . . . . . . . . . . . . . . . . . . . Unidentified Prototypes 25 | . . . 4 . 2 . . . . 3 . . . . . . . 3 . 2 1 2 . . 7 1 Parts Lost 82 | . . 3 . . . 2 11 . 3 6 . . . 3 1 . 2 . 3 . 5 . . 1 13 29 Power 11 | . . . . . . . 2 . 1 1 . . . . . . . . 1 . . . . 1 2 3 Propulsion 19 | . . 2 . . . 1 3 . 1 2 . . . 2 . . . . 1 . . . . . 2 5 Utility 32 | . . . . . . . 3 . 1 1 . . . 1 1 . . . . . 3 . . . 8 14 Weapon 20 | . . 1 . . . 1 3 . . 2 . . . . . . 2 . 1 . 2 . . . 1 7 Highest Loss Streak 15 | . . 3 . . . 2 3 . 2 3 . . . 2 1 . 2 . 2 . 5 . . 1 3 15 Average Slot Usage (%) 90 | . 91 91 98 100 97 94 94 91 91 90 87 86 86 83 86 93 93 95 94 94 88 89 89 89 88 75 Engine 5 | . 14 11 11 11 7 7 4 7 6 6 6 6 6 6 10 11 11 7 3 . . . . . . . Core 1 | . . . . . . . 2 . . . . . . . . . . 2 5 5 7 8 5 5 1 . Reactor 1 | . . . . . . . . . . . . . . . . . . . . 5 2 1 5 5 6 7 Treads 15 | . . . 17 22 21 18 8 . 14 22 26 26 26 21 20 23 23 23 18 15 12 10 10 10 9 8 Leg 2 | . . . . . . . 10 18 7 . . . . 1 1 . . . . . . . . . . . Device 7 | . . . . . 5 . 5 7 7 6 6 6 6 5 9 4 5 4 4 5 7 10 10 10 13 12 Storage 15 | . 14 11 21 22 19 15 15 15 15 13 7 6 6 6 5 16 17 17 21 21 21 21 21 21 19 17 Processor 16 | . . 7 11 11 10 23 15 15 15 20 20 20 20 20 17 17 17 17 17 15 15 15 15 15 17 14 Protection 8 | . 8 18 11 11 13 15 15 7 7 6 5 6 6 6 5 6 4 6 7 15 8 9 10 10 9 4 Energy Gun 1 | . 14 6 11 . 6 9 . . . . . . . . . . . . . . . . . . . . Energy Cannon 8 | . . . . . 1 4 12 7 14 10 10 12 13 12 10 10 7 . 4 10 8 10 10 10 8 6 Ballistic Gun 1 | . 10 15 7 22 6 . . . . . . . . . . . 1 5 . . . . . . . 1 Naked Turns . | . . . . . . . . . . . . . . . . . . . . . . . . . . . Heaviest Build 186 | 9 16 20 33 33 95 89 97 109 113 114 123 123 122 129 154 153 155 161 174 185 178 186 154 154 166 161 Greatest Support 160 | 26 26 26 46 46 69 69 48 45 74 91 80 80 80 83 113 108 108 108 124 124 145 145 145 145 160 140 Greatest Overweight (x) 9 | 1 . 1 9 . 1 1 4 6 4 1 1 1 1 2 5 1 1 1 1 1 1 1 1 1 1 1 Average Overweight (x) 1 | . . . . . . 1 1 4 1 1 1 1 1 1 1 1 1 1 1 1 1 1 1 . . . Largest Inventory Capacity 46 | 6 8 8 12 12 24 20 20 20 20 20 40 24 24 24 24 46 26 26 32 32 38 38 30 30 30 30 Average Capacity 24 | 5 6 8 11 12 17 20 20 20 20 20 23 24 24 24 24 26 26 26 30 32 32 30 30 30 30 27 Most Carried 33 | 3 8 8 12 12 20 20 20 20 20 20 24 24 24 24 24 26 26 26 32 32 33 33 30 30 30 30 Average Carried 23 | 1 4 7 11 12 17 19 18 19 19 19 22 24 24 23 23 24 25 25 30 31 31 30 30 29 28 26 Final Capacity 38 | 6 8 8 12 12 20 20 20 20 20 20 24 24 24 24 24 26 26 26 32 32 38 30 30 30 30 4 Final Carried 33 | 3 8 8 12 12 20 20 19 20 20 20 24 24 24 24 24 26 26 26 31 32 33 30 30 30 30 2 Class Distribution -------------------- 61% | Messiah-Mutant 13% | Messiah-Skirmisher 12% | Hauler-Mutant 7% | Mutant Dominant Class ---------------- Mutant | -10/Materials Mutant | -9/Materials Mutant | -9/Storage Commander-Mutant | -9/Recycling Mutant | -7/Factory Hauler-Mutant | -7/Lower Caves Scavenger-Mutant | -7/Lower Caves Hauler-Mutant | -7/Zion Messiah-Mutant | -6/Proximity Caves Messiah-Mutant | -6/Factory Messiah-Mutant | -6/Lower Caves Messiah-Mutant | -6/Lower Caves Messiah-Mutant | -6/Data Miner Messiah-Mutant | -5/Proximity Caves Messiah-Mutant | -5/Factory Messiah-Mutant | -5/Upper Caves Messiah-Mutant | -5/Upper Caves Messiah-Mutant | -5/Zhirov Messiah-Mutant | -4/Proximity Caves Messiah-Mutant | -4/Factory Messiah-Mutant | -4/Extension Messiah-Mutant | -4/Cetus Messiah-Mutant | -4/Archives Messiah-Mutant | -4/Hub_04(d) Messiah-Mutant | -3/Research Messiah-Mutant | -3/Garrison Resources | -11 -10 -9 -9 -9 -7 -7 -7 -7 -6 -6 -6 -6 -6 -5 -5 -5 -5 -5 -4 -4 -4 -4 -4 -4 -3 -3 ----------- Run | Scr Mat Mat Sto Rec Fac Low Low Zio Pro Fac Low Low Dat Pro Fac Upp Upp Zhi Pro Fac Ext Cet Arc Hub Res Gar Matter Collected 6471 | 248 40 180 220 120 339 155 208 57 215 351 160 140 . 325 378 160 179 . 395 388 286 110 . . 885 932 Remotely . | . . . . . . . . . . . . . . . . . . . . . . . . . . . Salvage Created 15355 | . 40 286 164 49 904 395 821 . 884 1482 32 123 . 383 1814 292 95 . 550 669 368 47 . 213 3666 2078 Parts 644 | . . 17 14 7 46 10 46 . 37 76 2 14 . 23 63 14 7 . 22 23 13 1 . 10 150 49 Haulers Intercepted 8 | . 1 . . . 1 . . . . 3 . . . . 1 . . . . 2 . . . . . . Recyclers Shooed 7 | . . . . 2 . . . . . 2 . . . . 1 . . . . . 1 . . . 1 . Parts Field Recycled . | . . . . . . . . . . . . . . . . . . . . . . . . . . . Retrieved Matter . | . . . . . . . . . . . . . . . . . . . . . . . . . . . Parts Self-Destructed 119 | . . . . . . 12 40 . 14 . 5 8 . 14 . 4 13 . 9 . . . . . . . Prevented 46 | . . . . . . . . . 15 . . . . 12 . 6 4 . 9 . . . . . . . Kills | -11 -10 -9 -9 -9 -7 -7 -7 -7 -6 -6 -6 -6 -6 -5 -5 -5 -5 -5 -4 -4 -4 -4 -4 -4 -3 -3 ------- Run | Scr Mat Mat Sto Rec Fac Low Low Zio Pro Fac Low Low Dat Pro Fac Upp Upp Zhi Pro Fac Ext Cet Arc Hub Res Gar Combat Hostiles Destroyed 294 | . . 6 3 4 15 12 19 . 17 24 3 13 . 13 32 8 4 . 16 3 6 . . 3 55 38 Melee 1 | . . . . . . . . . . . . . . . 1 . . . . . . . . . . . Guns 48 | . . 6 2 4 15 4 . . . 3 . . . . . . . . . . . . . . 3 11 Cannons 126 | . . . . . . . 12 . 3 18 . 1 . 4 21 1 2 . 3 1 4 . . 3 35 18 AOE 90 | . . . . . . 8 6 . 9 3 3 12 . 9 5 5 2 . 12 . . . . . 7 9 Classes Destroyed 18 | . 1 2 1 1 4 1 1 . . 1 . . . . 2 . . . 1 2 . . . . . 1 Worker 6 | . . . . . . . . . . . . . . . . . . . . 1 . . . 2 3 . Builder 2 | . . . . . . . . . . . . . . . 1 . . . . . . . . . 1 . Tunneler 1 | . . . . . 1 . . . . . . . . . . . . . . . . . . . . . Hauler 8 | . 1 . . . 1 . . . . 3 . . . . 1 . . . . 2 . . . . . . Recycler 5 | . . . . . . . . . . 1 . . . . 1 . . . . 1 . . . . 2 . Operator 1 | . . . . . . . . . . . . . . . . . . . . 1 . . . . . . Drone 4 | . . . . 4 . . . . . . . . . . . . . . . . . . . . . . Watcher 3 | . . . 1 . . . . . . . . . . . 2 . . . . . . . . . . . Swarmer 89 | . . . . . . 3 7 . 3 10 3 13 . 8 11 5 4 . 5 . . . . 1 7 9 Grunt 94 | . . 3 . . 8 8 5 . 10 5 . . . 3 11 2 . . 4 . 2 . . 2 15 16 Brawler 6 | . . . . . 1 . 2 . . . . . . 1 . 1 . . . . . . . . . 1 Duelist 5 | . . . . . . . 2 . . . . . . . . . . . . . . . . . 1 2 Sentry 29 | . . 3 3 . 2 1 2 . 2 5 . . . . 2 . . . . 3 2 . . . 3 1 Hunter 25 | . . . . . 2 . . . 2 . . . . 1 3 . . . 6 . 1 . . . 4 6 Programmer 38 | . . . . . 2 . 1 . . 4 . . . . 4 . . . . . . . . . 25 2 Behemoth 3 | . . . . . . . . . . . . . . . . . . . 1 . 1 . . . . 1 Investigator 1 | . . . . . . . . . . . . . . . . . . . . . . . . . . 1 Z-Light 1 | . . . . . . . . . . . . . . . 1 . . . . . . . . . . . Best Kill Streak 14 | . 1 3 2 2 4 5 4 . 8 6 3 7 . 4 9 5 2 . 5 2 2 . . 3 8 14 Combat Bots Only 14 | . . 3 2 2 4 5 4 . 8 6 3 7 . 4 9 5 2 . 5 1 2 . . 2 7 14 Max Kills in Single Turn 4 | . 1 1 1 1 1 2 2 . 3 2 3 2 . 3 3 4 1 . 4 1 1 1 . 1 4 2 Gunslinging . | . . . . . . . . . . . . . . . . . . . . . . . . . . . Exploded 4 | . . . . . . 2 2 . 3 1 3 2 . 3 2 4 1 . 4 . . . . . 3 2 Melee 1 | . . . . . . . . . . . . . . . 1 . . . . . . . . . . . Uniques/NPCs Destroyed 1 | . . . . . . . . . . . . . . . . . . . . . . 1 . . . . A7 (-4/Cetus) Combat | -11 -10 -9 -9 -9 -7 -7 -7 -7 -6 -6 -6 -6 -6 -5 -5 -5 -5 -5 -4 -4 -4 -4 -4 -4 -3 -3 -------- Run | Scr Mat Mat Sto Rec Fac Low Low Zio Pro Fac Low Low Dat Pro Fac Upp Upp Zhi Pro Fac Ext Cet Arc Hub Res Gar Damage Taken 28368 | . 34 274 246 . 684 701 1349 . 1467 1220 163 370 . 492 1784 321 345 . 1901 124 1823 11 . 615 5363 9081 Core 2197 | . . 50 33 . 78 107 209 . 94 64 . 14 . . 103 19 . . 85 . 78 . . 9 207 1047 Absorbed by Shields 4459 | . . . . . 252 . . . . . . . . . . . . . 308 44 534 12 . 326 2101 882 Reduced by Siege Mode 604 | . . . . . . . . . . . . . . . . . . . . . 20 . . . 354 230 Core Remaining (%) 81 | 100 100 . . 79 . . . . 30 . . . . 90 . . . . 79 . . . . 92 . . Volleys Fired 718 | . 3 22 16 11 45 20 52 . 26 57 4 10 . 19 68 10 8 . 32 13 27 7 3 18 143 104 Largest 2 | . 2 2 2 2 2 2 2 . 2 2 1 2 . 2 2 2 2 . 2 2 2 2 2 2 2 2 Hottest 210 | . 60 85 121 46 120 120 150 . 138 180 43 138 . 138 180 138 134 . 162 162 170 196 196 196 210 210 Shots Fired 1290 | . 5 44 25 22 86 27 98 . 46 107 4 11 . 31 130 17 15 . 47 26 50 12 6 35 274 172 Gun 282 | . 4 44 18 22 83 19 . . . 6 . . . . . . . . 1 . . . . . 23 62 Cannon 916 | . . . . . 3 . 92 . 41 98 . 2 . 24 126 14 14 . 31 26 50 12 6 35 247 95 Launcher 92 | . 1 . 7 . . 8 6 . 5 3 4 9 . 7 4 3 1 . 15 . . . . . 4 15 Special . | . . . . . . . . . . . . . . . . . . . . . . . . . . . Kinetic 241 | . 2 33 8 22 37 . . . . 13 . . . . . . 7 . 18 . 13 . . . 23 65 Thermal 677 | . . 8 10 . 28 19 92 . . 76 . . . . 36 . . . . . 16 12 6 35 247 92 Explosive 92 | . 1 . 7 . . 8 6 . 5 3 4 9 . 7 4 3 1 . 15 . . . . . 4 15 Electromagnetic 280 | . 2 3 . . 21 . . . 41 15 . 2 . 24 90 14 7 . 14 26 21 . . . . . Robot Hit Streak 56 | . 1 13 27 6 25 14 8 . 23 29 28 4 . 18 56 18 6 . 16 28 20 3 . 12 41 34 Robot Miss Streak 6 | . 1 1 . 4 1 2 3 . 1 4 . 2 . 1 6 1 4 . 2 1 4 . . 1 2 3 Penetration Max 1 | . . . . . . . . . . . . . . . . . . . . . . . . . 1 1 Secondary Targets 5 | . . . . . . . . . . . . . . . . . . . . . . . . . 1 4 Max Gunslinging Chain 1 | . . . . . . . . . . . . . . . . . . . . . . . . . 1 1 Shots Hit Robots 967 | . 2 36 20 9 70 20 62 . 37 79 3 5 . 28 97 15 9 . 38 23 35 3 . 17 233 126 Core Hits 560 | . 2 11 7 4 34 24 34 . 32 45 3 15 . 22 53 10 5 . 39 8 13 1 . 9 94 95 Critical Hits 64 | . . . . . 3 . . . . 8 . . . 1 . . . . . . 2 . . . 25 25 Critical Kills 24 | . . . . . 1 . . . . 5 . . . . . . . . . . 1 . . . 7 10 Critical Parts Destroyed 35 | . . . . . 2 . . . . 3 . . . . . . . . . . 1 . . . 17 12 Melee Attacks . | . . . . . . . . . . . . . . . . . . . . . . . . . . . Impact . | . . . . . . . . . . . . . . . . . . . . . . . . . . . Slashing . | . . . . . . . . . . . . . . . . . . . . . . . . . . . Piercing . | . . . . . . . . . . . . . . . . . . . . . . . . . . . Sneak Attacks . | . . . . . . . . . . . . . . . . . . . . . . . . . . . Combat Hostiles . | . . . . . . . . . . . . . . . . . . . . . . . . . . . Follow-up Attacks . | . . . . . . . . . . . . . . . . . . . . . . . . . . . Damage Inflicted 44677 | . 56 433 376 175 1570 1244 2286 . 1982 2731 445 1309 . 1658 3976 800 263 . 2488 869 1429 101 . 971 10978 8537 Guns 5992 | . 36 433 269 175 1484 339 . . . 67 . . . . . . . . 23 . . . . . 736 2430 Cannons 24833 | . . . . . 73 . 1782 . 960 2491 . 25 . 589 2936 389 129 . 551 779 1409 101 . 610 8973 3036 Explosions 13475 | . 20 . 107 . . 905 497 . 984 167 445 1284 . 1069 1029 411 134 . 1914 90 . . . 273 1231 2915 Melee . | . . . . . . . . . . . . . . . . . . . . . . . . . . . Ramming 377 | . . . . . 13 . 7 . 38 6 . . . . 11 . . . . . 20 . . 88 38 156 Kinetic 5285 | . 11 288 116 175 442 . . . . 169 . . . . . . 10 . 335 . 453 . . . 736 2550 Thermal 19163 | . 20 113 153 . 795 339 1782 . 62 2003 . . . . 779 . 36 . . 90 391 101 . 610 8973 2916 Explosive 12965 | . . . 107 . . 905 497 . 922 138 445 1284 . 1069 1029 411 98 . 1914 . . . . . 1231 2915 Electromagnetic 6887 | . 25 32 . . 320 . . . 960 415 . 25 . 589 2157 389 119 . 239 779 565 . . 273 . . Impact . | . . . . . . . . . . . . . . . . . . . . . . . . . . . Slashing . | . . . . . . . . . . . . . . . . . . . . . . . . . . . Piercing . | . . . . . . . . . . . . . . . . . . . . . . . . . . . Highest Corruption 59 | . . . . . 2 2 2 2 1 . . . . . 1 1 . . . . . . . 7 39 59 Average Corruption 12 | . . . . . 1 2 2 2 1 . . . . . 1 1 . . . . . . . 1 23 38 Corruption Purged 20 | . . . . . . . . . . . . . . . . 1 . . . . . . . . 11 8 Effects 382 | . . . . . 2 11 13 . 2 . . . . . 3 5 . . . . . . . . 187 159 Message Errors 57 | . . . . . . 5 3 . 2 . . . . . . 1 . . . . . . . . 32 14 Matter Fused 38 | . . . . . . . . . . . . . . . . . . . . . . . . . 20 18 Heat Flow Errors 19 | . . . . . . 1 1 . . . . . . . . . . . . . . . . . 12 5 Energy Discharges 21 | . . . . . . 2 2 . . . . . . . 2 1 . . . . . . . . 10 4 Parts Rejected 6 | . . . . . . . . . . . . . . . . . . . . . . . . . 3 3 Data Loss (minor) 29 | . . . . . 1 3 4 . . . . . . . . 2 . . . . . . . . 11 8 Data Loss (major) 5 | . . . . . . . . . . . . . . . . . . . . . . . . . 3 2 Misfires 4 | . . . . . . . . . . . . . . . . . . . . . . . . . 3 1 Alerts 5 | . . . . . . . . . . . . . . . . . . . . . . . . . 2 3 Misdirections 36 | . . . . . . . . . . . . . . . . . . . . . . . . . 20 16 Targeting Errors 138 | . . . . . 1 . 3 . . . . . . . 1 1 . . . . . . . . 64 68 Weapon Failures 24 | . . . . . . . . . . . . . . . . . . . . . . . . . 7 17 Overload Shots 96 | . . . . . 21 8 17 . . . . . . . . . . . . . 2 . . . 18 30 Effects 8 | . . . . . 3 1 2 . . . . . . . . . . . . . . . . . 1 1 Energy Bleed 3 | . . . . . 2 . . . . . . . . . . . . . . . . . . . 1 . Heat Surge 2 | . . . . . 1 . . . . . . . . . . . . . . . . . . . . 1 Short Circuit 2 | . . . . . . . 2 . . . . . . . . . . . . . . . . . . . Meltdown 1 | . . . . . . 1 . . . . . . . . . . . . . . . . . . . . Overflow Damage 1357 | . . . 28 . 2 4 58 . 17 49 75 80 . 81 160 . 6 . 76 . . 27 . 11 390 293 Projectiles 655 | . . . . . . . 45 . 17 49 . . . 7 122 . 6 . 22 . . 27 . . 251 109 Explosions 689 | . . . 28 . . 4 13 . . . 75 80 . 74 38 . . . 54 . . . . . 139 184 Melee 13 | . . . . . 2 . . . . . . . . . . . . . . . . . . 11 . . Knockbacks 10 | . . . . . . . . . . 1 . . . . . . 1 . 6 . . . . 2 . . Impact 1 | . . . . . . . . . . . . . . . . . . . . . . . . 1 . . Kinetic 8 | . . . . . . . . . . 1 . . . . . . 1 . 6 . . . . . . . Secondary 1 | . . . . . . . . . . . . . . . . . . . . . . . . 1 . . Self-Inflicted Damage 923 | . 34 . 44 . . . 63 . 49 14 53 68 . 31 . . . . 145 . . . . 103 85 234 Shots 24 | . 1 . 2 . . . 3 . 1 1 1 1 . 2 . . . . 5 . . . . 1 2 4 Rammed 51 | . . . . . 3 . 2 . 7 1 . . . . 1 . . . . . 2 . . 3 2 30 Targets Rammed 52 | . . . . . 3 . 2 . 7 1 . . . . 2 . . . . . 2 . . 3 2 30 Kicked . | . . . . . . . . . . . . . . . . . . . . . . . . . . . Crushed 1 | . . . . . . . . . . . . . . . 1 . . . . . . . . . . . Highest Temperature 488 | . 32 234 289 . 228 281 359 . 162 234 . . . 188 405 327 488 . 394 309 54 132 66 144 383 293 Average Temperature 92 | . 27 91 154 . 68 93 88 . 54 78 . . . 75 101 58 139 . 100 109 13 61 31 52 115 80 Received Heat Transfer 3875 | . . 126 54 . 130 243 408 . 475 165 . . . 81 312 117 . . 94 12 200 . . 26 293 1139 Effects 14 | . . . . . . . 1 . . . . . . . 2 . 2 . 2 . . . . . 7 . Shutdowns 6 | . . . . . . . . . . . . . . . 2 . . . 2 . . . . . 2 . Energy Bleed 3 | . . . . . . . . . . . . . . . . . . . . . . . . . 3 . Interference 1 | . . . . . . . . . . . . . . . . . . . . . . . . . 1 . Matter Decay 1 | . . . . . . . 1 . . . . . . . . . . . . . . . . . . . Short Circuit 1 | . . . . . . . . . . . . . . . . . . . . . . . . . 1 . Damage (major) 2 | . . . . . . . . . . . . . . . . . 2 . . . . . . . . . Siege Activations 29 | . . . . . . . . . . . . . . . . . . . . . 1 . . . 18 10 Total Turns 645 | . . . . . . . . . . . . . . . . . . . . . 14 . . . 444 187 Longest Duration 70 | . . . . . . . . . . . . . . . . . . . . . 14 . . . 53 70 Robots Corrupted 18 | . . . . . . . . . 5 . . . . . 5 2 . . 1 3 2 . . . . . Combat Hostiles 17 | . . . . . . . . . 5 . . . . . 5 2 . . 1 2 2 . . . . . Parts Fried 49 | . . . . . 1 . . . 9 1 . . . 3 19 5 . . 1 9 . . . 1 . . Impact Corruptions 2 | . . . . . 1 . . . . . . . . . . . . . . . . . . 1 . . Robots Melted 13 | . . . 1 . . . 1 . . 1 . . . . . . . . . . . . . . 10 . Combat Hostiles 12 | . . . 1 . . . 1 . . . . . . . . . . . . . . . . . 10 . Parts Melted 109 | . . . . . 2 1 2 . . 5 . . . . 7 . . . . . . 1 . 1 77 13 Heat Transferred 24833 | . 50 259 370 . 1009 546 2350 . 50 2961 . . . . 1050 . . . . 100 383 150 . 900 10815 3840 Parts Sabotaged 3 | . . . . . . . . . . . . . . . . . . . . . . . . . . 3 Parts Stolen . | . . . . . . . . . . . . . . . . . . . . . . . . . . . Parts Stripped . | . . . . . . . . . . . . . . . . . . . . . . . . . . . Power Chain Reactions 5 | . 1 . . . . . . . 1 . . . . . . . 1 . . 2 . . . . . . Missiles Intercepted . | . . . . . . . . . . . . . . . . . . . . . . . . . . . Alert | -11 -10 -9 -9 -9 -7 -7 -7 -7 -6 -6 -6 -6 -6 -5 -5 -5 -5 -5 -4 -4 -4 -4 -4 -4 -3 -3 ------- Run | Scr Mat Mat Sto Rec Fac Low Low Zio Pro Fac Low Low Dat Pro Fac Upp Upp Zhi Pro Fac Ext Cet Arc Hub Res Gar Peak Influence 2350 | . 47 197 191 172 1017 . . . . 283 . . . . 681 . . . . 250 1139 1110 533 1043 1447 2350 Average Influence 614 | . 34 79 72 102 875 . . . . 166 . . . . 231 . . . . 68 621 831 354 610 913 1749 Maximum Alert Level 5 | . . . . . 3 . . . . 1 . . . . 2 . . . . 1 4 4 2 3 4 5 Low Security (%) 27 | 100 100 100 100 100 . . . . . 55 . . . . 38 . . . . 95 8 . 29 4 . . Level 1 15 | . . . . . . . . . . 44 . . . . 48 . . . . 4 17 . 36 9 . . Level 2 15 | . . . . . . . . . . . . . . . 12 . . . . . 33 9 34 47 30 . Level 3 25 | . . . . . 100 . . . . . . . . . . . . . . . 29 72 . 37 34 1 Level 4 11 | . . . . . . . . . . . . . . . . . . . . . 10 17 . . 34 41 Level 5 1 | . . . . . . . . . . . . . . . . . . . . . . . . . . 20 High Security 2 | . . . . . . . . . . . . . . . . . . . . . . . . . . 36 Max Security . | . . . . . . . . . . . . . . . . . . . . . . . . . . . Squads Dispatched 60 | . 2 1 . . 6 . 1 . 1 5 . . . . 6 . . . . . 2 . . 5 17 14 Investigation 6 | . 1 1 . . 1 . . . 1 . . . . . 1 . . . . . . . . 1 . . Extermination 16 | . . . . . 2 . . . . 4 . . . . 2 . . . . . . . . 1 7 . Reinforcement 14 | . 1 . . . 3 . . . . 1 . . . . 3 . . . . . 1 . . 3 2 . Assault 20 | . . . . . . . 1 . . . . . . . . . . . . . 1 . . . 4 14 Garrison 4 | . . . . . . . . . . . . . . . . . . . . . . . . . 4 . Intercept . | . . . . . . . . . . . . . . . . . . . . . . . . . . . Construction Impeded 2 | . . . . . . . . . . . . . . . 1 . . . . . . . . . 1 . Haulers Reinforced 3 | . . . . . . . . . . 1 . . . . . . . . . . . . . 2 . . Stealth | -11 -10 -9 -9 -9 -7 -7 -7 -7 -6 -6 -6 -6 -6 -5 -5 -5 -5 -5 -4 -4 -4 -4 -4 -4 -3 -3 --------- Run | Scr Mat Mat Sto Rec Fac Low Low Zio Pro Fac Low Low Dat Pro Fac Upp Upp Zhi Pro Fac Ext Cet Arc Hub Res Gar Distress Signals 15 | . . 1 . . . . . . . . . . . . 3 . . . . . 3 2 . 4 2 . Communications Jammed . | . . . . . . . . . . . . . . . . . . . . . . . . . . . Distress Signals . | . . . . . . . . . . . . . . . . . . . . . . . . . . . Times Spotted 580 | . 1 8 4 13 30 15 36 . 29 34 4 12 . 17 52 8 4 . 17 4 39 16 3 30 87 117 Peak Tracking Total 27 | . 1 4 2 3 5 6 6 . 14 8 4 4 . 5 10 5 2 . 5 1 6 5 1 8 7 27 Tactical Retreats 44 | . . . . . 2 3 8 . 5 5 1 . . 2 5 . . . 1 1 1 . . . 4 6 Traps | -11 -10 -9 -9 -9 -7 -7 -7 -7 -6 -6 -6 -6 -6 -5 -5 -5 -5 -5 -4 -4 -4 -4 -4 -4 -3 -3 ------- Run | Scr Mat Mat Sto Rec Fac Low Low Zio Pro Fac Low Low Dat Pro Fac Upp Upp Zhi Pro Fac Ext Cet Arc Hub Res Gar Traps Triggered 11 | . . . 1 . 1 . . . . . . . . . 1 . . . . . 4 . . . 4 . Indirectly . | . . . . . . . . . . . . . . . . . . . . . . . . . . . Trap Hack Attempts . | . . . . . . . . . . . . . . . . . . . . . . . . . . . Triggered . | . . . . . . . . . . . . . . . . . . . . . . . . . . . Disarmed . | . . . . . . . . . . . . . . . . . . . . . . . . . . . Reprogrammed . | . . . . . . . . . . . . . . . . . . . . . . . . . . . Reused . | . . . . . . . . . . . . . . . . . . . . . . . . . . . Traps Extracted . | . . . . . . . . . . . . . . . . . . . . . . . . . . . Installed . | . . . . . . . . . . . . . . . . . . . . . . . . . . . Triggered 5 | . . . . . . 1 . . . . . 2 . . . . 2 . . . . . . . . . Machines | -11 -10 -9 -9 -9 -7 -7 -7 -7 -6 -6 -6 -6 -6 -5 -5 -5 -5 -5 -4 -4 -4 -4 -4 -4 -3 -3 ---------- Run | Scr Mat Mat Sto Rec Fac Low Low Zio Pro Fac Low Low Dat Pro Fac Upp Upp Zhi Pro Fac Ext Cet Arc Hub Res Gar Machines Disabled 42 | . 2 . 3 1 . . . . 4 2 . . . . 1 . . . . 8 7 1 2 6 1 4 Max in Single Turn 4 | . 2 . 1 1 . . . . 1 1 . . . . 1 . . . . 3 1 1 . 4 1 2 Garrison Access 2 | . . . . . . . . . . 1 . . . . 1 . . . . . . . . . . . Garrison Relay 1 | . . . . . . . . . . . . . . . . . . . . . . . . . . 1 Phase Generator 1 | . . . . . . . . . . . . . . . . . . . . . . . . . . 1 Network Hub 2 | . . . . . . . . . . . . . . . . . . . . . . . . 2 . . Machines Sabotaged . | . . . . . . . . . . . . . . . . . . . . . . . . . . . Garrisons Compromised . | . . . . . . . . . . . . . . . . . . . . . . . . . . . Overloaded Fab Kills . | . . . . . . . . . . . . . . . . . . . . . . . . . . . Fab Network Shutdowns . | . . . . . . . . . . . . . . . . . . . . . . . . . . . Hacking | -11 -10 -9 -9 -9 -7 -7 -7 -7 -6 -6 -6 -6 -6 -5 -5 -5 -5 -5 -4 -4 -4 -4 -4 -4 -3 -3 --------- Run | Scr Mat Mat Sto Rec Fac Low Low Zio Pro Fac Low Low Dat Pro Fac Upp Upp Zhi Pro Fac Ext Cet Arc Hub Res Gar Machines Accessed 42 | . 2 2 5 4 8 . 1 . 1 1 1 . 4 . 2 . 3 4 . . . . . 1 3 . Terminals 16 | . 2 1 5 4 3 . . . 1 . . . . . . . . . . . . . . . . . Fabricators 4 | . . . . . 3 . . . . . . . . . 1 . . . . . . . . . . . Repair Stations 3 | . . . . . 1 . . . . . . . . . . . . . . . . . . . 2 . Recycling Units . | . . . . . . . . . . . . . . . . . . . . . . . . . . . Scanalyzers 2 | . . 1 . . 1 . . . . . . . . . . . . . . . . . . . . . Garrison Access 4 | . . . . . . . . . . 1 . . . . 1 . . . . . . . . 1 1 . Total Hacks 150 | . 11 4 19 11 21 . 1 . 4 2 1 . 26 . 3 . 8 17 . . . . . 3 19 . Successful 104 | . 6 2 11 7 11 . 1 . 4 1 1 . 26 . 1 . 8 17 . . . . . 2 6 . Failed 45 | . 4 2 8 4 10 . . . . 1 . . . . 2 . . . . . . . . 1 13 . Catastrophic 9 | . 1 . . 2 3 . . . . . . . . . . . . . . . . . . . 3 . Database Lockouts 1 | . 1 . . . . . . . . . . . . . . . . . . . . . . . . . Manual 160 | . 9 2 10 7 1 . . 1 . 26 . . . . 20 . . . . 2 34 8 1 22 17 . Terminals 51 | . 11 1 19 11 5 . . . 4 . . . . . . . . . . . . . . . . . Fabricators 9 | . . . . . 7 . . . . . . . . . 2 . . . . . . . . . . . Repair Stations 11 | . . . . . 5 . . . . . . . . . . . . . . . . . . . 6 . Recycling Units . | . . . . . . . . . . . . . . . . . . . . . . . . . . . Scanalyzers 7 | . . 3 . . 4 . . . . . . . . . . . . . . . . . . . . . Garrison Access 19 | . . . . . . . . . . 2 . . . . 1 . . . . . . . . 3 13 . Terminal Hacks 81 | . 5 1 9 7 2 . 1 . 4 . 1 . 26 . . . 8 17 . . . . . . . . Record 26 | . . . . . . . . . 4 . . . 11 . . . 6 5 . . . . . . . . Part Schematic 10 | . . . 1 . . . . . . . . . 5 . . . . 4 . . . . . . . . Robot Schematic 7 | . . . . . . . . . . . . . 7 . . . . . . . . . . . . . Robot Analysis 6 | . 1 1 . . . . . . . . . . . . . . . 4 . . . . . . . . Prototype ID Bank 7 | . . . . . . . . . . . . . 3 . . . . 4 . . . . . . . . Open Door 7 | . . . 3 . . . 1 . . . 1 . . . . . 2 . . . . . . . . . Level Access Points 1 | . . . . 1 . . . . . . . . . . . . . . . . . . . . . . Emergency Access Points 1 | . 1 . . . . . . . . . . . . . . . . . . . . . . . . . Terminal Index 1 | . . . . 1 . . . . . . . . . . . . . . . . . . . . . . Garrison Index 1 | . . . . 1 . . . . . . . . . . . . . . . . . . . . . . Unreport Threat 3 | . 1 . 1 1 . . . . . . . . . . . . . . . . . . . . . . Locate Traps 3 | . . . 2 . 1 . . . . . . . . . . . . . . . . . . . . . Dispatch Records 1 | . 1 . . . . . . . . . . . . . . . . . . . . . . . . . Registered Components 1 | . . . 1 . . . . . . . . . . . . . . . . . . . . . . . Zone Layout 6 | . 1 . 1 3 1 . . . . . . . . . . . . . . . . . . . . . Fabricator Hacks 2 | . . . . . 2 . . . . . . . . . . . . . . . . . . . . . Load Schematic 2 | . . . . . 2 . . . . . . . . . . . . . . . . . . . . . Repair Station Hacks 5 | . . . . . 4 . . . . . . . . . . . . . . . . . . . 1 . Scan Component 3 | . . . . . 2 . . . . . . . . . . . . . . . . . . . 1 . Repair 2 | . . . . . 2 . . . . . . . . . . . . . . . . . . . . . Recycling Unit Hacks . | . . . . . . . . . . . . . . . . . . . . . . . . . . . Scanalyzer 4 | . . 1 . . 3 . . . . . . . . . . . . . . . . . . . . . Insert Component 3 | . . 1 . . 2 . . . . . . . . . . . . . . . . . . . . . Analyze 1 | . . . . . 1 . . . . . . . . . . . . . . . . . . . . . Garrison Access Hacks 3 | . . . . . . . . . . 1 . . . . 1 . . . . . . . . . 1 . Unlock Access 1 | . . . . . . . . . . . . . . . . . . . . . . . . . 1 . Seal Access 2 | . . . . . . . . . . 1 . . . . 1 . . . . . . . . . . . Unauthorized Hacks 28 | . 4 . 5 . . . . . . . . . . . . . . . . . . . . 5 14 . Terminals 3 | . 1 . 2 . . . . . . . . . . . . . . . . . . . . . . . Botnet 3 | . 1 . 2 . . . . . . . . . . . . . . . . . . . . . . . Fabricators . | . . . . . . . . . . . . . . . . . . . . . . . . . . . Repair Stations . | . . . . . . . . . . . . . . . . . . . . . . . . . . . Recycling Units . | . . . . . . . . . . . . . . . . . . . . . . . . . . . Scanalyzers . | . . . . . . . . . . . . . . . . . . . . . . . . . . . Garrison Access 6 | . . . . . . . . . . . . . . . . . . . . . . . . 2 4 . Broadcast 2 | . . . . . . . . . . . . . . . . . . . . . . . . 1 1 . Decoy 1 | . . . . . . . . . . . . . . . . . . . . . . . . . 1 . Redirect 1 | . . . . . . . . . . . . . . . . . . . . . . . . . 1 . Reprogram 2 | . . . . . . . . . . . . . . . . . . . . . . . . 1 1 . Data Cores Recovered 2 | . . . . . . . . . . . . . . . . . . . . 1 . . . 1 . . Used . | . . . . . . . . . . . . . . . . . . . . . . . . . . . Hacking Detections 24 | . 2 2 5 3 7 . . . 1 1 . . . . 1 . . . . . . . . 1 1 . Full Trace Events 4 | . . 1 . . 1 . . . 1 . . . . . . . . . . . . . . 1 . . Feedback Events . | . . . . . . . . . . . . . . . . . . . . . . . . . . . Feedback Blocked . | . . . . . . . . . . . . . . . . . . . . . . . . . . . Robot Schematics Acquired 11 | . . . . . . . . . . . . . 7 . 4 . . . . . . . . . . . Robots Built . | . . . . . . . . . . . . . . . . . . . . . . . . . . . Matter . | . . . . . . . . . . . . . . . . . . . . . . . . . . . Time . | . . . . . . . . . . . . . . . . . . . . . . . . . . . Total Robot Build Rating . | . . . . . . . . . . . . . . . . . . . . . . . . . . . Part Schematics Acquired 27 | . . . 1 . 1 . . . . . . . 5 . 16 . . 4 . . . . . . . . Parts Built . | . . . . . . . . . . . . . . . . . . . . . . . . . . . Matter . | . . . . . . . . . . . . . . . . . . . . . . . . . . . Time . | . . . . . . . . . . . . . . . . . . . . . . . . . . . Total Part Build Rating . | . . . . . . . . . . . . . . . . . . . . . . . . . . . Parts Repaired 1 | . . . . . 1 . . . . . . . . . . . . . . . . . . . . . Time 83 | . . . . . 83 . . . . . . . . . . . . . . . . . . . . . Parts Recycled . | . . . . . . . . . . . . . . . . . . . . . . . . . . . Recycled Matter . | . . . . . . . . . . . . . . . . . . . . . . . . . . . Retrieved Matter . | . . . . . . . . . . . . . . . . . . . . . . . . . . . Retrieved Components . | . . . . . . . . . . . . . . . . . . . . . . . . . . . Parts Scanalyzed 2 | . . 1 . . 1 . . . . . . . . . . . . . . . . . . . . . Part Schematics Acquired 1 | . . . . . 1 . . . . . . . . . . . . . . . . . . . . . Parts Damaged . | . . . . . . . . . . . . . . . . . . . . . . . . . . . Bothacking | -11 -10 -9 -9 -9 -7 -7 -7 -7 -6 -6 -6 -6 -6 -5 -5 -5 -5 -5 -4 -4 -4 -4 -4 -4 -3 -3 ------------ Run | Scr Mat Mat Sto Rec Fac Low Low Zio Pro Fac Low Low Dat Pro Fac Upp Upp Zhi Pro Fac Ext Cet Arc Hub Res Gar Used RIF Installer . | . . . . . . . . . . . . . . . . . . . . . . . . . . . Robots Hacked . | . . . . . . . . . . . . . . . . . . . . . . . . . . . Non-combat . | . . . . . . . . . . . . . . . . . . . . . . . . . . . Combat . | . . . . . . . . . . . . . . . . . . . . . . . . . . . Robot Hacks Applied . | . . . . . . . . . . . . . . . . . . . . . . . . . . . Relay Couplers Released 4 | . . . . . . . . . . . . . . . . . . . . . . . . . . 4 Machine Destruction 4 | . . . . . . . . . . . . . . . . . . . . . . . . . . 4 Robots Rewired 31 | . . . . 10 . . 2 . . . . . . . . . . . . . 19 . . . . . Allies Hacked 3 | . . . . . . . . . . . . . . . . . . . . . . . . 1 2 . Hacks Repelled . | . . . . . . . . . . . . . . . . . . . . . . . . . . . Allies | -11 -10 -9 -9 -9 -7 -7 -7 -7 -6 -6 -6 -6 -6 -5 -5 -5 -5 -5 -4 -4 -4 -4 -4 -4 -3 -3 -------- Run | Scr Mat Mat Sto Rec Fac Low Low Zio Pro Fac Low Low Dat Pro Fac Upp Upp Zhi Pro Fac Ext Cet Arc Hub Res Gar Total Allies 103 | . . . . 10 . . 2 7 . 3 . . . 1 3 . . . . 2 47 15 2 6 5 . Largest Group 32 | . . . . 10 8 . 2 7 7 3 . . . 1 3 . . . . 2 32 26 20 22 4 1 Highest-Rated Group 1945 | . . . . 111 93 . 46 212 212 210 . . . 94 210 . . . . 100 1945 1604 1194 1465 156 64 Highest-Rated Ally 156 | . . . . 24 24 . 30 38 38 70 . . . 94 94 . . . . 50 156 148 94 103 64 64 Zionite Dispatches 20 | . . . . . . . . . . 3 . . . . 1 . . . . 1 8 3 . 3 1 . Heavy 3 | . . . . . . . . . . . . . . . . . . . . . 2 . . 1 . . Light 6 | . . . . . . . . . . 1 . . . . 1 . . . . . 3 1 . . . . Recon 3 | . . . . . . . . . . 2 . . . . . . . . . . 1 . . . . . Fire 2 | . . . . . . . . . . . . . . . . . . . . . . 1 . . 1 . Hacker 1 | . . . . . . . . . . . . . . . . . . . . . . 1 . . . . Demo 1 | . . . . . . . . . . . . . . . . . . . . 1 . . . . . . Thermal Resupply 2 | . . . . . . . . . . . . . . . . . . . . . . . . 2 . . Heavy Resupply 1 | . . . . . . . . . . . . . . . . . . . . . 1 . . . . . Hacking Resupply 1 | . . . . . . . . . . . . . . . . . . . . . 1 . . . . . Total Orders 21 | . . . . 5 . . . . . 1 7 4 . . 1 . . . . . 3 . . . . . GOTO 3 | . . . . . . . . . . . 1 2 . . . . . . . . . . . . . . FOLLOW 6 | . . . . 2 . . . . . . 4 . . . . . . . . . . . . . . . GUARD 2 | . . . . . . . . . . . . . . . . . . . . . 2 . . . . . AID 1 | . . . . . . . . . . . . . . . . . . . . . 1 . . . . . TUNNEL 1 | . . . . 1 . . . . . . . . . . . . . . . . . . . . . . DROP 1 | . . . . 1 . . . . . . . . . . . . . . . . . . . . . . COLLECT 1 | . . . . 1 . . . . . . . . . . . . . . . . . . . . . . EXPLORE 6 | . . . . . . . . . . 1 2 2 . . 1 . . . . . . . . . . . Ally Attacks 595 | . . . . 48 43 . 12 . 25 18 . . . 15 25 . . . . 1 179 85 26 103 9 6 Total Damage 20541 | . . . . 230 527 . 221 . 893 370 . . . 383 495 . . . . 105 8257 3768 984 3878 156 274 Kills 128 | . . . . 10 3 . 2 . 6 3 . . . 3 3 . . . . 1 41 18 5 32 1 . Allies Corrupted 8 | . . . . . . . . . . . . . . . . . . . . . . . . 7 1 . Allies Melted 1 | . . . . . . . . . . . . . . . 1 . . . . . . . . . . . Intel | -11 -10 -9 -9 -9 -7 -7 -7 -7 -6 -6 -6 -6 -6 -5 -5 -5 -5 -5 -4 -4 -4 -4 -4 -4 -3 -3 ------- Run | Scr Mat Mat Sto Rec Fac Low Low Zio Pro Fac Low Low Dat Pro Fac Upp Upp Zhi Pro Fac Ext Cet Arc Hub Res Gar Robot Analysis Total 6 | . 1 1 . . . . . . . . . . . . . . . 4 . . . . . . . . Derelict Logs Recovered 10 | . . . . . . 3 . 2 1 . . 2 . 1 . . 1 . . . . . . . . . Drone Launches 10 | . . . . . . . . . . 2 . . . . 6 . . . . . 2 . . . . . Drone Recoveries . | . . . . . . . . . . . . . . . . . . . . . . . . . . . Zionite Intel Received 13 | . . . . . . . . . . 4 . . . . 4 . . . . . 3 . . 2 . . Guard Positions 1 | . . . . . . . . . . 1 . . . . . . . . . . . . . . . . Component Stockpiles 1 | . . . . . . . . . . . . . . . 1 . . . . . . . . . . . Prototype Stockpiles 1 | . . . . . . . . . . . . . . . 1 . . . . . . . . . . . Component Schematics 1 | . . . . . . . . . . . . . . . 1 . . . . . . . . . . . Unaware Schematics 1 | . . . . . . . . . . . . . . . 1 . . . . . . . . . . . Unaware Analyses 3 | . . . . . . . . . . 1 . . . . . . . . . . 1 . . 1 . . Trap Installations 1 | . . . . . . . . . . . . . . . . . . . . . 1 . . . . . Active Terminals 1 | . . . . . . . . . . . . . . . . . . . . . . . . 1 . . Active Garrisons 1 | . . . . . . . . . . . . . . . . . . . . . 1 . . . . . Depthwide Sectors/0 1 | . . . . . . . . . . 1 . . . . . . . . . . . . . . . . Depthwide Sectors/-1 1 | . . . . . . . . . . 1 . . . . . . . . . . . . . . . . Exploration | -11 -10 -9 -9 -9 -7 -7 -7 -7 -6 -6 -6 -6 -6 -5 -5 -5 -5 -5 -4 -4 -4 -4 -4 -4 -3 -3 ------------- Run | Scr Mat Mat Sto Rec Fac Low Low Zio Pro Fac Low Low Dat Pro Fac Upp Upp Zhi Pro Fac Ext Cet Arc Hub Res Gar Turns Passed 24612 | 48 180 176 468 490 1729 992 1017 1462 1063 1471 694 1107 144 1088 1662 664 883 291 1026 610 1246 451 1136 590 2811 1113 Spaces Moved 10784 | 44 161 91 255 204 839 518 416 829 497 646 196 555 80 546 691 296 435 142 443 286 516 202 112 278 1121 385 Core 68 | 7 . . 2 . . . . . . . . . . . . . . . . . . . . . . 59 Treads 9173 | . . . 188 204 839 518 228 . 325 646 196 555 80 546 691 296 435 142 443 286 516 202 112 278 1121 326 Legs 772 | . . 7 . . . . 188 405 172 . . . . . . . . . . . . . . . . . Wheels 771 | 37 161 84 65 . . . . 424 . . . . . . . . . . . . . . . . . . Hover . | . . . . . . . . . . . . . . . . . . . . . . . . . . . Flight . | . . . . . . . . . . . . . . . . . . . . . . . . . . . Fastest Speed 50 | 50 90 80 80 160 160 180 180 160 180 182 182 182 182 180 180 190 190 190 186 186 170 190 190 160 160 50 Average Speed 177 | 86 90 86 144 160 167 180 187 173 183 182 182 182 182 184 193 190 190 190 186 186 186 190 190 189 179 160 Slowest Speed 500 | 100 90 150 500 160 180 180 240 240 240 183 182 182 182 200 270 190 190 190 190 186 190 190 190 190 190 185 Overloaded Moves . | . . . . . . . . . . . . . . . . . . . . . . . . . . . Propulsion Burnouts . | . . . . . . . . . . . . . . . . . . . . . . . . . . . Robots Hopped . | . . . . . . . . . . . . . . . . . . . . . . . . . . . Cave-ins Triggered 1 | . . . . . . . . . . . . . . . . . . . . . . . . . . 1 Teleports 1 | . . . . . . . . . . . . . . . . . . . . . . . . . . 1 Exploration Rate (%) 54 | 3 35 10 35 52 28 69 50 91 64 25 82 93 74 73 34 52 53 61 57 10 92 87 87 48 32 75 Regions Visited 26 Branch Regions 18 Pre-discovered Areas 16 | . . . . . . . . 1 . 10 . . 1 . . . 1 3 . . . . . . . . Known Exits Taken 22 | . . . . 1 1 1 1 1 1 1 1 1 1 1 1 1 1 1 1 1 1 1 1 1 1 . Unknown Exits Taken 4 | 1 1 1 1 . . . . . . . . . . . . . . . . . . . . . . . Scrap Searched 23 | . . . . . . 4 4 3 1 . 2 1 . 2 . 3 2 . 1 . . . . . . . Spaces Dug 106 | . . . . . 1 11 9 . 5 11 . . . . 7 2 . . 9 . 2 8 5 12 22 2 Terrain Destroyed 1223 | . 8 . 43 . 4 46 57 . 17 26 72 85 . 103 68 26 2 . 155 42 3 8 5 167 55 231 Melee . | . . . . . . . . . . . . . . . . . . . . . . . . . . . Projectile 94 | . . . . . 4 1 8 . . 12 . . . . 13 . . . 4 . 3 8 5 14 16 6 AOE 1129 | . 8 . 43 . . 45 49 . 17 14 72 85 . 103 55 26 2 . 151 42 . . . 153 39 225 Actions | -11 -10 -9 -9 -9 -7 -7 -7 -7 -6 -6 -6 -6 -6 -5 -5 -5 -5 -5 -4 -4 -4 -4 -4 -4 -3 -3 --------- Run | Scr Mat Mat Sto Rec Fac Low Low Zio Pro Fac Low Low Dat Pro Fac Upp Upp Zhi Pro Fac Ext Cet Arc Hub Res Gar Total 14832 | 51 190 144 330 346 1083 548 552 853 599 829 530 637 79 593 878 379 478 165 586 337 748 258 1030 303 1637 669 Wait 2253 | . 15 16 17 56 118 3 33 11 26 50 321 66 . 2 58 48 11 . 78 15 25 22 916 3 243 100 Move 10756 | 43 160 90 254 203 838 517 415 828 496 645 195 554 79 545 690 295 434 141 442 285 515 201 111 277 1120 383 Hop . | . . . . . . . . . . . . . . . . . . . . . . . . . . . Pick Up 186 | 3 7 3 9 . 27 1 10 3 14 18 3 . . 5 8 5 8 6 7 5 7 6 . 1 29 1 Fast Attach 101 | 5 . 4 7 . 11 . 7 2 3 8 2 . . 3 8 4 . 5 1 . 4 3 . . 16 8 Attach 92 | . 2 3 . . 4 1 9 1 2 7 . . . 2 4 3 4 2 2 5 6 . . . 19 16 Detach 21 | . . . 2 . 1 . 2 1 . 1 2 . . . . 1 . . . 1 3 . . . 7 . Swap 219 | . 2 3 11 . 10 5 3 3 10 20 1 7 . 12 21 7 6 2 19 9 11 8 . . 34 15 Drop 195 | . 1 3 14 . 26 1 6 4 15 21 2 . . 5 15 6 7 9 5 4 9 11 . 1 24 6 Fire 718 | . 3 22 16 11 45 20 52 . 26 57 4 10 . 19 68 10 8 . 32 13 27 7 3 18 143 104 Melee . | . . . . . . . . . . . . . . . . . . . . . . . . . . . Ram 6 | . . . . . . . . . . . . . . . . . . . . . . . . . . 6 Kick . | . . . . . . . . . . . . . . . . . . . . . . . . . . . Crush 46 | . . . . . 3 . 2 . 7 1 . . . . 2 . . . . . 2 . . 3 2 24 Escape Stasis 16 | . . . . . . . . . . . . . . . 2 . . . . . 8 . . . . 6 Rewire 219 | . . . . 76 . . 13 . . . . . . . . . . . . . 130 . . . . . Trap . | . . . . . . . . . . . . . . . . . . . . . . . . . . . Miscellaneous 4 | . . . . . . . . . . 1 . . . . 2 . . . . . 1 . . . . . Route ------- -11/Scrapyard -10/Materials -9/Materials -9/Storage -9/Recycling -7/Factory (discovered 2 exits: *Fac / *Low) -7/Lower Caves -7/Lower Caves -7/Zion (discovered 2 exits: Dee / *Pro) -6/Proximity Caves -6/Factory (discovered 2 exits: *Fac / *Low) -6/Lower Caves -6/Lower Caves (discovered 2 exits: *Fac / *Dat) -6/Data Miner -5/Proximity Caves -5/Factory -5/Upper Caves -5/Upper Caves (discovered 2 exits: Fac / *Zhi) -5/Zhirov -4/Proximity Caves -4/Factory -4/Extension (discovered 3 exits: *Res x2 / *Cet) -4/Cetus (discovered 2 exits: *Res / *Arc) -4/Archives (discovered 3 exits: *Res / *Hub x2) -4/Hub_04(d) (discovered 2 exits: *Res x2) -3/Research -3/Garrison (discovered 1 exit: [*Res]) History --------- Turn | Location | Event 15 | -11/Scrapyard | Discovered new exit (range 16) 49 | -11/Scrapyard | Entered Materials 57 | -10/Materials | Central database locked down 187 | -10/Materials | Discovered new exit (range 13) 229 | -10/Materials | Entered another Materials area 229 | -9/Materials | Evolved 2 slots: Utility x2 235 | -9/Materials | Discovered new exit (range 15) 278 | -9/Materials | Lost 3 parts (2n1w) 308 | -9/Materials | Build established: Mutant 405 | -9/Materials | Entered Storage 867 | -9/Storage | Used back door to open Recycling access 867 | -9/Storage | Discovered new exit (range 5) 873 | -9/Storage | Entered Recycling 908 | -9/Recycling | Spotter reported a threat 908 | -9/Recycling | Identified exit to Factory 943 | -9/Recycling | Spotter reported a threat 966 | -9/Recycling | Spotter reported a threat 977 | -9/Recycling | Spotter reported a threat 982 | -9/Recycling | Spotter reported a threat 982 | -9/Recycling | Spotter reported a threat 1030 | -9/Recycling | Spotter reported a threat 1035 | -9/Recycling | Spotter reported a threat 1035 | -9/Recycling | Spotter reported a threat 1088 | -9/Recycling | Spotter reported a threat 1089 | -9/Recycling | Spotter reported a threat 1114 | -9/Recycling | Spotter reported a threat 1121 | -9/Recycling | Spotter reported a threat 1169 | -9/Recycling | Spotter reported a threat 1191 | -9/Recycling | Spotter reported a threat 1199 | -9/Recycling | Spotter reported a threat 1199 | -9/Recycling | Spotter reported a threat 1222 | -9/Recycling | Spotter reported a threat 1232 | -9/Recycling | Spotter reported a threat 1276 | -9/Recycling | Spotter reported a threat 1276 | -9/Recycling | Spotter reported a threat 1276 | -9/Recycling | Spotter reported a threat 1333 | -9/Recycling | Build established: Commander-Mutant 1363 | -9/Recycling | Entered Factory 1363 | -7/Factory | Accompanied by 8 allies 1363 | -7/Factory | Evolved 4 slots: Propulsion x1, Utility x3 2024 | -7/Factory | Build established: Mutant 2058 | -7/Factory | Repaired Imp. Treads 2746 | -7/Factory | Build established: Hauler-Mutant 2934 | -7/Factory | Discovered new exit (range 16) 2955 | -7/Factory | Discovered new exit (range 9) 3029 | -7/Factory | Identified exit to Factory 3068 | -7/Factory | Identified exit to Lower Caves 3092 | -7/Factory | Entered Lower Caves 3158 | -7/Lower Caves | Learned Factory terminal intel 3209 | -7/Lower Caves | Learned Factory stockpile data 3367 | -7/Lower Caves | Learned Factory terminal intel 3449 | -7/Lower Caves | Attracted the attention of an 0b10 checkpoint 3867 | -7/Lower Caves | Encountered a Warlord checkpoint 4026 | -7/Lower Caves | Discovered new exit (range 9) 4039 | -7/Lower Caves | Identified exit to Lower Caves 4084 | -7/Lower Caves | Entered another Lower Caves area 4218 | -7/Lower Caves | Attracted the attention of an 0b10 outpost 4432 | -7/Lower Caves | Lost 3 parts (1u2w) 4630 | -7/Lower Caves | Build established: Scavenger-Mutant 4633 | -7/Lower Caves | Core integrity fell below 50% 4638 | -7/Lower Caves | Attracted the attention of an 0b10 checkpoint 5076 | -7/Lower Caves | Discovered new exit (range 9) 5088 | -7/Lower Caves | Identified exit to Zion 5101 | -7/Lower Caves | Entered Zion 5233 | -7/Zion | Discovered new exit (range 9) 5245 | -7/Zion | Identified exit to Proximity Caves 5268 | -7/Zion | Build established: Hauler-Mutant 5300 | -7/Zion | System corruption cleaned by Quarantine Array 5412 | -7/Zion | Gained Derelict followers 5452 | -7/Zion | Acquired unknown access codes intercepted by a Zionite 5498 | -7/Zion | Received a visual enhancement algorithm 5540 | -7/Zion | Learned 8 Factory zone layouts 5619 | -7/Zion | Identified exit to Deep Caves 6113 | -7/Zion | Given A8's code to call for help 6210 | -7/Zion | Imprinted 6212 | -7/Zion | Declared Zion's savior 6505 | -7/Zion | Build established: Messiah-Mutant 6563 | -7/Zion | Entered Proximity Caves 6563 | -6/Proximity Caves | Accompanied by 7 allies 6593 | -6/Proximity Caves | Learned Factory stockpile data 6785 | -6/Proximity Caves | Attracted the attention of an 0b10 base 6826 | -6/Proximity Caves | Destroyed 8 combat bots 6841 | -6/Proximity Caves | Learned Research security intel 6841 | -6/Proximity Caves | Learned Extension stockpile data 6841 | -6/Proximity Caves | Learned Factory trap positions 6841 | -6/Proximity Caves | Learned 6 Lower Caves zone layouts 7473 | -6/Proximity Caves | Spotted B-75 Beast 7614 | -6/Proximity Caves | Discovered exit to Factory (range 8) 7626 | -6/Proximity Caves | Entered Factory 7626 | -6/Factory | Evolved 2 slots: Propulsion x1, Utility x1 7628 | -6/Factory | Loaded intel: 79 trap records 7630 | -6/Factory | Loaded intel: 20 terminal locations 7843 | -6/Factory | Lost 3 parts (1p2w) 8403 | -6/Factory | Retrieved Zion intel report: Unaware Analyses 8404 | -6/Factory | Zion Recon squad teleported in 8474 | -6/Factory | Zion Light squad teleported in 8564 | -6/Factory | Discovered new exit (range 22) 8567 | -6/Factory | Discovered new exit (range 62) 8600 | -6/Factory | Identified exit to Factory 8737 | -6/Factory | Retrieved Zion intel report: Depthwide Sectors/-1 8752 | -6/Factory | Retrieved Zion intel report: Depthwide Sectors/0 9019 | -6/Factory | Retrieved Zion intel report: Guard Positions 9020 | -6/Factory | Zion Recon squad teleported in 9061 | -6/Factory | Identified exit to Lower Caves 9067 | -6/Factory | Terminal network hard line cut 9097 | -6/Factory | Entered Lower Caves 9097 | -6/Lower Caves | Accompanied by 4 allies 9098 | -6/Lower Caves | Encountered a Warlord checkpoint 9510 | -6/Lower Caves | Discovered new exit (range 111) 9740 | -6/Lower Caves | Identified exit to Lower Caves 9791 | -6/Lower Caves | Entered another Lower Caves area 9791 | -6/Lower Caves | Accompanied by 3 allies 9865 | -6/Lower Caves | Discovered exit to Factory (range 28) 9913 | -6/Lower Caves | Learned Factory garrison access intel 10080 | -6/Lower Caves | Destroyed 7 combat bots 10188 | -6/Lower Caves | Learned Factory stockpile data 10878 | -6/Lower Caves | Discovered new exit (range 12) 10896 | -6/Lower Caves | Identified exit to Data Miner 10898 | -6/Lower Caves | Entered Data Miner 10898 | -6/Data Miner | Discovered new exit (range 6) 10922 | -6/Data Miner | Met Data Miner 10979 | -6/Data Miner | Learned location of Section 7 (-2) 10979 | -6/Data Miner | Acquired the access code to Warlord's prototype stash 10997 | -6/Data Miner | Received God Mode back door access code from Data Miner 11040 | -6/Data Miner | Identified exit to Proximity Caves 11042 | -6/Data Miner | Entered Proximity Caves 11323 | -5/Proximity Caves | Escorted by Enhanced Grunt 11419 | -5/Proximity Caves | Learned 8 Factory zone layouts 11612 | -5/Proximity Caves | Build established: Messiah-Skirmisher 11732 | -5/Proximity Caves | Spotted B-75 Beast 11930 | -5/Proximity Caves | Build established: Messiah-Mutant 12096 | -5/Proximity Caves | Discovered exit to Factory (range 12) 12130 | -5/Proximity Caves | Entered Factory 12130 | -5/Factory | Accompanied by 1 ally 12130 | -5/Factory | Evolved 2 slots: Power x1, Utility x1 12133 | -5/Factory | Loaded intel: 20 terminal locations 12134 | -5/Factory | Loaded intel: 4 garrison access locations 12246 | -5/Factory | Build established: Messiah-Skirmisher 12269 | -5/Factory | Retrieved Zion intel report: Prototype Stockpiles 12644 | -5/Factory | Build established: Messiah-Mutant 12713 | -5/Factory | Retrieved Zion intel report: Component Stockpiles 12797 | -5/Factory | Retrieved Zion intel report: Component Schematics 12798 | -5/Factory | Zion Light squad teleported in 12889 | -5/Factory | P-70 Sage assimilated allied 7C-FQY(z) 13298 | -5/Factory | Found Imp. Powered Armor 13332 | -5/Factory | Discovered new exit (range 22) 13352 | -5/Factory | Retrieved Zion intel report: Unaware Schematics 13500 | -5/Factory | Terminal network hard line cut 13635 | -5/Factory | Identified exit to Upper Caves 13762 | -5/Factory | Destroyed 9 combat bots 13792 | -5/Factory | Entered Upper Caves 14428 | -5/Upper Caves | Discovered new exit (range 16) 14454 | -5/Upper Caves | Identified exit to Upper Caves 14456 | -5/Upper Caves | Entered another Upper Caves area 14569 | -5/Upper Caves | Identified exit to Factory 14702 | -5/Upper Caves | Learned Factory security intel 14702 | -5/Upper Caves | Learned Research terminal intel 15311 | -5/Upper Caves | Discovered new exit (range 5) 15337 | -5/Upper Caves | Identified exit to Zhirov 15339 | -5/Upper Caves | Entered Zhirov 15339 | -5/Zhirov | Discovered new exit (range 3) 15374 | -5/Zhirov | Met Zhirov 15415 | -5/Zhirov | Learned location of Quarantine (-3) 15415 | -5/Zhirov | Learned location of Testing (-2) 15415 | -5/Zhirov | Learned location of Command (-1) 15427 | -5/Zhirov | Zhirov requested help retrieving the SGEMP Prototype 15456 | -5/Zhirov | Found Alien Artifact 15456 | -5/Zhirov | Identified Integrated Reactor 15456 | -5/Zhirov | Installed Integrated Reactor, increased core energy generation (+2%) 15484 | -5/Zhirov | Found Alien Artifact 15625 | -5/Zhirov | Identified exit to Proximity Caves 15630 | -5/Zhirov | Entered Proximity Caves 15686 | -4/Proximity Caves | Spotted B-86 Titan 15833 | -4/Proximity Caves | Destroyed B-86 Titan 15866 | -4/Proximity Caves | Found Hvy. Reflective Plating 16632 | -4/Proximity Caves | Discovered exit to Factory (range 16) 16656 | -4/Proximity Caves | Entered Factory 16656 | -4/Factory | Evolved 2 slots: Utility x2 17214 | -4/Factory | Discovered new exit (range 5) 17217 | -4/Factory | Zion Demo squad teleported in 17264 | -4/Factory | Identified exit to Extension 17266 | -4/Factory | Entered Extension 17266 | -4/Extension | Accompanied by 2 allies 17320 | -4/Extension | Rescued a captive Derelict 17323 | -4/Extension | Rescued a captive Derelict 17345 | -4/Extension | Retrieved Zion intel report: Unaware Analyses 17346 | -4/Extension | Zion Heavy squad teleported in 17417 | -4/Extension | Rescued A7 17461 | -4/Extension | Found Prototype Protection 17461 | -4/Extension | Identified Zio. Heavy Carapace 17584 | -4/Extension | Rescued a captive Derelict 17585 | -4/Extension | Retrieved Zion intel report: Trap Installations 17586 | -4/Extension | Zion Heavy Resupply teleported in 17606 | -4/Extension | Rescued a captive Derelict 17606 | -4/Extension | Rescued a captive Derelict 17799 | -4/Extension | Spotted B-86 Titan 17812 | -4/Extension | Spotted B-86 Titan 17836 | -4/Extension | Door terminal overloaded 17836 | -4/Extension | Discovered new exit (range 17) 17843 | -4/Extension | Allies destroyed B-86 Titan 17858 | -4/Extension | Destroyed B-86 Titan 17882 | -4/Extension | Lost 5 parts (3u2w) 17935 | -4/Extension | Rescued a captive Derelict 17936 | -4/Extension | Rescued a captive Derelict 17937 | -4/Extension | Zion Light squad teleported in 17968 | -4/Extension | Zion Light squad teleported in 17992 | -4/Extension | Zion Recon squad teleported in 18146 | -4/Extension | Discovered new exit (range 68) 18146 | -4/Extension | Discovered new exit (range 66) 18160 | -4/Extension | Rescued a captive Derelict 18161 | -4/Extension | Rescued a captive Derelict 18161 | -4/Extension | Retrieved Zion intel report: Active Garrisons 18162 | -4/Extension | Zion Heavy squad teleported in 18180 | -4/Extension | Rescued a captive Derelict 18181 | -4/Extension | Zion Light squad teleported in 18266 | -4/Extension | First assault squad dispatched 18344 | -4/Extension | Found Prototype Protection 18409 | -4/Extension | Zion Hacking Resupply teleported in 18412 | -4/Extension | Rescued a captive Derelict 18438 | -4/Extension | Rescued a captive Derelict 18470 | -4/Extension | Identified exit to Cetus 18476 | -4/Extension | Disrupted transfer network 18483 | -4/Extension | Identified exit to Research 18512 | -4/Extension | Entered Cetus 18512 | -4/Cetus | Accompanied by 18 allies 18517 | -4/Cetus | Acquired a Cetus Manufacturing Module code from A7 18534 | -4/Cetus | Spotted Cetus Guard 18534 | -4/Cetus | Spotted Cetus Guard 18536 | -4/Cetus | Spotted Cetus Guard 18536 | -4/Cetus | Spotted Cetus Guard 18544 | -4/Cetus | Allies destroyed Cetus Guard 18549 | -4/Cetus | Allies destroyed Cetus Guard 18549 | -4/Cetus | Allies destroyed Cetus Guard 18554 | -4/Cetus | Allies destroyed Cetus Guard 18557 | -4/Cetus | Found Prototype Protection 18557 | -4/Cetus | Identified Zio. Weapon Casing (x2) 18664 | -4/Cetus | Zion Hacker squad teleported in 18672 | -4/Cetus | Zion Fire squad teleported in 18712 | -4/Cetus | Started Cetus Manufacturing Module 18723 | -4/Cetus | Zion Light squad teleported in 18737 | -4/Cetus | Manufactured an Enhanced Grunt 18741 | -4/Cetus | Escorted A7 to Cetus Mainframe 18762 | -4/Cetus | Manufactured an Enhanced Grunt 18769 | -4/Cetus | Discovered new exit (range 21) 18787 | -4/Cetus | Manufactured an Enhanced Grunt 18806 | -4/Cetus | Spotted Cetus Guard 18806 | -4/Cetus | Spotted Cetus Guard 18810 | -4/Cetus | Spotted Cetus Guard 18811 | -4/Cetus | Spotted Cetus Guard 18812 | -4/Cetus | Manufactured an Enhanced Grunt 18815 | -4/Cetus | Discovered exit to Research (range 21) 18825 | -4/Cetus | Allies destroyed Cetus Guard 18827 | -4/Cetus | Allies destroyed Cetus Guard 18827 | -4/Cetus | Allies destroyed Cetus Guard 18828 | -4/Cetus | Allies destroyed Cetus Guard 18834 | -4/Cetus | Destroyed A7 18835 | -4/Cetus | Extracted ID and sensor layout for unrecognized location from A7's data core 18837 | -4/Cetus | Manufactured an Enhanced Grunt 18844 | -4/Cetus | Scared off Revision 17 18920 | -4/Cetus | Identified exit to Archives 18963 | -4/Cetus | Entered Archives 18963 | -4/Archives | Accompanied by 20 allies 18988 | -4/Archives | Discovered new exit (range 22) 19011 | -4/Archives | Discovered exit to Research (range 16) 19024 | -4/Archives | Unable to access archive contents 19027 | -4/Archives | Enhanced Grunt warped into view, answering call for help 19030 | -4/Archives | Enhanced Grunt warped into view, answering call for help 19032 | -4/Archives | Discovered new exit (range 13) 19113 | -4/Archives | Identified exit to Hub_04(d) 20099 | -4/Archives | Entered Hub_04(d) 20099 | -4/Hub_04(d) | Accompanied by 18 allies 20099 | -4/Hub_04(d) | Discovered exit to Research (range 10) 20176 | -4/Hub_04(d) | Discovered exit to Research (range 22) 20211 | -4/Hub_04(d) | Zion Heavy squad teleported in 20462 | -4/Hub_04(d) | Retrieved Zion intel report: Unaware Analyses 20481 | -4/Hub_04(d) | Retrieved Zion intel report: Active Terminals 20482 | -4/Hub_04(d) | Zion Thermal Resupply teleported in 20522 | -4/Hub_04(d) | Zion Thermal Resupply teleported in 20640 | -4/Hub_04(d) | Network Hub disabled 20657 | -4/Hub_04(d) | Network Hub disabled 20670 | -4/Hub_04(d) | Spotted Lightning 20670 | -4/Hub_04(d) | Spotted Lightning 20681 | -4/Hub_04(d) | Spotted Lightning 20683 | -4/Hub_04(d) | Spotted Lightning 20683 | -4/Hub_04(d) | Spotted Lightning 20683 | -4/Hub_04(d) | Spotted Lightning 20689 | -4/Hub_04(d) | Entered Research 20689 | -3/Research | Evolved 2 slots: Utility x2 20691 | -3/Research | Loaded intel: 20 terminal locations 20788 | -3/Research | Zion Fire squad teleported in 20954 | -3/Research | Spotted B-86 Titan 21333 | -3/Research | Build established: Messiah-Skirmisher 21537 | -3/Research | System corruption reached 10% 21598 | -3/Research | Destroyed 7 combat bots 21845 | -3/Research | Build established: Messiah-Mutant 22025 | -3/Research | Garrison activated, responded to threat 22047 | -3/Research | Lost 3 parts (1p2u) 22077 | -3/Research | Terminal network hard line cut 22270 | -3/Research | System corruption reached 30% 22375 | -3/Research | Found Prototype Device 22375 | -3/Research | Identified Exp. Thermal Defense Suite 22749 | -3/Research | Found Fusion Bomb Launcher 22939 | -3/Research | First assault squad dispatched 23218 | -3/Research | Incoming assault squad redirected 23492 | -3/Research | Identified exit to Garrison 23494 | -3/Research | Garrison activated, responded to threat 23500 | -3/Research | Entered Garrison 23500 | -3/Garrison | Accompanied by 1 ally 23522 | -3/Garrison | Phase Generator disabled 23810 | -3/Garrison | Triggered checkpoint 23822 | -3/Garrison | Garrison Relay disabled 23978 | -3/Garrison | Triggered checkpoint 23988 | -3/Garrison | Spotted B-86 Titan 24123 | -3/Garrison | Destroyed B-86 Titan 24151 | -3/Garrison | Triggered checkpoint 24161 | -3/Garrison | Triggered checkpoint 24206 | -3/Garrison | Destroyed 7 combat bots 24207 | -3/Garrison | High security lockdown imminent 24228 | -3/Garrison | Crushed by falling debris 24259 | -3/Garrison | Lost 3 parts (3u) 24287 | -3/Garrison | High security lockdown engaged 24370 | -3/Garrison | Triggered checkpoint 24401 | -3/Garrison | Lost 4 parts (1p2u1w) 24464 | -3/Garrison | Destroyed 14 combat bots 24472 | -3/Garrison | Scanned by Researcher 24479 | -3/Garrison | Destroyed Investigator 24507 | -3/Garrison | Core integrity fell below 50% 24537 | -3/Garrison | Identified Transdimensional Reconstructor 24537 | -3/Garrison | Warped through subspace 24567 | -3/Garrison | Lost 15 parts (2p3n6u4w) 24568 | -3/Garrison | Triggered checkpoint 24585 | -3/Garrison | Discovered new exit (range 15) 24593 | -3/Garrison | Attempted to access garrison exit controls, blocked by remote lockdown 24595 | -3/Garrison | Attempted to install RIF, but system incompatible 24604 | -3/Garrison | Spotted Executioner 24604 | -3/Garrison | Spotted Striker 24604 | -3/Garrison | Spotted Striker 24610 | -3/Garrison | Core integrity fell below 20% 24613 | -3/Garrison | Destroyed by G-73 Enforcer with Heavy Laser Last Messages --------------- 24604_ G-73 Enforcer unfolds itself. 24604_ B-74 Champion unfolds itself. 24604_ G-67 Veteran unfolds itself. 24604_ B-74 Champion unfolds itself. 24604_ I-47 Archangel unfolds itself. 24605_ Penetrated by Slug. 24605_ Slug penetrates Y-72 Warden. 24605_ Y-72 Warden suffers critical hit. 24607_ Slug penetrates I-47 Archangel. 24607_ Penetrated by Slug. 24607_ System corrupted: Enh. Coil Gun targeting data glitched. 24607_ Slug penetrates G-67 Veteran. 24607_ G-67 Veteran destroyed. 24609_ Arm. Heavy Treads destroyed. 24610_ Slug penetrates Striker. 24613_ System corrupted: Com. Mass Driver jammed. 24613_ System corrupted: Enh. Coil Gun targeting data glitched. 24613_ Slug penetrates G-73 Enforcer. 24613_ Slug penetrates Wall. 24613_ Enh. Coil Gun destroyed. Map ----- +----------------------------------------------------+ | | | | | | | | | | | | | | | | | | | | | ?????????????????????????????????????????????????? | | ?????????????????????????????????????????????????? | | ?????????????????????????????????????????????????? | | ?????????????????????????????????????????????????? | | ?????????????????????????????????????????????????? | | ?????????????????????????????????????????????????? | | ?????????????????????????????????????????????????? | | ?????????????????????????????????????????????????? | | ????????????????????????############?????????????? | | ????????????????????????# ! #""""#?????????????? | | ????????????????????????# %< #?????????????? | | ????????????????????????#Ys i #""""#?????????????? | | ????????????????????????#YYK########?????????????? | | ????????????????????????#sYg#????????????????????? | | ????????????????????????#ssb#????????????????????? | | ????????????????????????#@Kg#????????????????????? | | ????????????????????????#ggg#????????????????????? | | ????????????????????????#Egg#????????????????????? | | ????????????????????????#bgi#????????????????????? | | ????????????????????????#ml #????????????????????? | | ????????????????????????#% #????????????????????? | | ????????????????????????#% #????????????????????? | | ????????????????????????# #????????????????????? | | ????????????????????????# #######??????????????? | | ??????????????????####### #??????????????? | | ??????????????????# #??????????????? | | ??????????????????# ##### #### #??????????????? | | ??????????????????# #???# #???? #??????????????? | | ??????????????????# #???# #????????????????????? | | ??????????????????# #???# #????????????????????? | | ??????????????????# #???# #????????????????????? | | ??????????????????# #???# #????????????????????? | | ??????????????????# #???# #????????????????????? | | ??????????????????# #???#" #????????????????????? | | ??????????????????# #????%" #????????????????????? | | ????? ???????????# #????" #????????????????????? | | ????? ???????????# #???? #????????????????????? | | ???## ???????????# #???? #????????????????????? | | ???? ????????#### ##### ??????????????? | | ????# ????????# #??????????????? | +----------------------------------------------------+ Best States ------------- Heat Dissipation 102 Coolant Potential 120 Energy Generation 57 Energy Capacity 580 Matter Stores 300 Matter Capacity 300 Sight Range 22 Robot Scan Range 22 Terrain Scan Density 10 Additional Mass Support 12 Armor Coverage 1500 Resistance: TH 30 Core Shielding 20 Power Shielding 90 Propulsion Shielding 33 Utility Shielding 66 Weapon Shielding 100 Phase Shifting 5 Evasion (%) 50 Targeting Accuracy 11 Target Analysis 8 Core Analysis 6 Recoil Reduction 4 Particle Charging 30 Item Schematics ----------------- Hcp. Storage Unit | -9/Storage | Hacked Cld. Ion Engine | -7/Factory | Scanalyzed Combat Drone Bay | -6/Data Miner | Free Lgt. Regenerative Plating | -6/Data Miner | Free Exp. Sensor Array | -6/Data Miner | Free Exp. Targeting Computer | -6/Data Miner | Free Kinetic Spear | -6/Data Miner | Free Imp. Thermal Generator | -5/Factory | Z-intel Wave Gun | -5/Factory | Z-intel Hpw. Shock Rifle | -5/Factory | Z-intel Nuclear Pulse Array | -5/Factory | Z-intel Maneuvering Thrusters | -5/Factory | Z-intel Scythe | -5/Factory | Z-intel Imp. Terrain Scan Processor | -5/Factory | Z-intel Imp. Arc Projector | -5/Factory | Z-intel Energy Filter | -5/Factory | Z-intel Plasma Rifle | -5/Factory | Z-intel Hvy. Flak Cannon | -5/Factory | Z-intel Lrn. Sensor Array | -5/Factory | Z-intel Katana | -5/Factory | Z-intel Imp. Focal Shield | -5/Factory | Z-intel Force Field | -5/Factory | Z-intel Hrd. Light Armor Plating | -5/Factory | Z-intel Assault Drone Bay | -5/Zhirov | Free Exp. Heat Sink | -5/Zhirov | Free Exp. Optical Array | -5/Zhirov | Free Imp. Arc Thrower | -5/Zhirov | Free Robot Schematics ------------------ S-27 Virus | -6/Data Miner | Free G-50 Soldier | -6/Data Miner | Free G-67 Veteran | -6/Data Miner | Free L-41 Fighter | -6/Data Miner | Free X-72 Disruptor | -6/Data Miner | Free P-70 Sage | -6/Data Miner | Free I-36 Angel | -6/Data Miner | Free B-48 Gladiator | -5/Factory | Z-intel B-60 Warrior | -5/Factory | Z-intel A-02 Transporter | -5/Factory | Z-intel P-60 Hacker | -5/Factory | Z-intel Fabricated ------------ Nothing Alien Tech Used ----------------- Integrated Reactor Transdimensional Reconstructor Achievements -------------- None Challenges ------------ None Game ------ Seed ArchitectBarrageSystem Manual? 0 Play Time 04:10:42 Cumulative 474.9 hours Start 2020.02.09 @ 17:46:42 End 2020.02.12 @ 15:49:56 Sessions 15 Manual Loads 0 Difficulty Rogue Special Mode None Game No. 303 Rogue 303 Adventurer 0 Explorer 0 Win Type - Total 32 Types 21/1/5/5/0/0/0 Lore% 88 Gallery% 88 Achievement% 76 Wizard Run 0 Options --------- ASCII 1 Keyboard 0 Movement Numpad Keybinds 0 Fullscreen 1 Font 20/SmallcapsGlow Map View 98x62 Tactical HUD 1 Map Filters NONE Filters NONE Steam 1 RUN: f1c61641-96f3-4979-9fe9-cf6890d11f67